Cogmind - Beta 15 @@@ ROGUE MODE // 2025.05.27 @ 21:43:52 Player: Elias Result: Destroyed by B-75 Beast with Heavy Machine Gun Performance ------------- Evolutions (5) 2500 Regions Visited (7) 1400 Robots Destroyed (28) 140 Value Destroyed (873) 873 Prototype IDs (14) 280 Alien Tech Used (0) 0 Bonus (800) 800 TOTAL SCORE: 5993 Bonus ------- Registered with UFD 300 Met Optimus in HQ 500 Cogmind --------- Core Integrity 0/1000 Matter 131/300 Energy 98/100 System Corruption 1% Temperature Cool (0) Movement Core (50) Location -5/Extension Parts ------- > --- POWER (2) -------- (None) > --- PROPULSION (4) --- (None) > --- UTILITY (8) ------ (None) > --- WEAPON (3) ------- (None) > --- INVENTORY (5) ---- Improved Heat Sink Advanced Cooling System Advanced Sensor Array Phase Shifter Hacking Suite Peak State ------------ > --- POWER ------------ Angular Momentum Engine Micro Fission Core > --- PROPULSION ------- Flexi-carbon Leg Armored Leg Improved VSS Leg Improved VSS Leg > --- UTILITY ---------- Scrap Suit Large Storage Unit Active Sensor Suite Improved Kinecellerator Improved Kinecellerator > --- WEAPON ----------- Disruptor Cannon Heavy Flak Cannon Mass Driver > --- INVENTORY -------- Light Angular Momentum Engine Flexi-carbon Leg Flexi-carbon Leg Improved Heat Sink Advanced Cooling System Advanced Sensor Array Improved Kinecellerator Phase Shifter Hardened Heavy Armor Plating Improved Light Armor Plating Force Field Hacking Suite Tesla Rifle KE Penetrator [Rating: 103] Favorites ----------- Power Fission Core Engine Light Ion Engine Power Core Fission Core Propulsion Armored Leg Treads Improved Treads Leg Armored Leg Hover Unit Linear Gravjet Utility Small Storage Unit Device Active Sensor Suite Storage Small Storage Unit Processor Armor Integrity Analyzer Weapon Heavy Assault Rifle Energy Gun Medium Laser Energy Cannon Phase Cannon Ballistic Gun Heavy Assault Rifle Ballistic Cannon Mass Driver Launcher Subdweller Shrapnel Launcher Slashing Weapon Carbide Saw Build | -11 -10 -10 -10 -9 -6 -5 -5 ------- Run | Yrd Mat Min Sub Scr Fac Fac Ext Slots Evolved 10 | . . . . . 8 2 . Power 1 | . . . . . 1 . . Propulsion 2 | . . . . . 2 . . Utility 6 | . . . . . 4 2 . Weapon 1 | . . . . . 1 . . Parts Attached 49 | 6 4 . 3 9 14 6 7 Power 10 | 1 . . 2 2 3 . 2 Engine 7 | 1 . . 2 1 2 . 1 Core 3 | . . . . 1 1 . 1 Reactor . | . . . . . . . . Propulsion 13 | 2 2 . . 3 5 . 1 Treads 3 | . 2 . . 1 . . . Leg 9 | 2 . . . 2 5 . . Wheel . | . . . . . . . . Hover 1 | . . . . . . . 1 Flight . | . . . . . . . . Utility 11 | 1 . . . 2 4 3 1 Device 7 | . . . . . 3 3 1 Storage 2 | 1 . . . 1 . . . Processor 2 | . . . . 1 1 . . Hackware . | . . . . . . . . Protection . | . . . . . . . . Artifact . | . . . . . . . . Weapon 15 | 2 2 . 1 2 2 3 3 Energy Gun 3 | 2 . . . . . . 1 Energy Cannon 3 | . . . . 1 1 . 1 Ballistic Gun 4 | . 2 . 1 . . 1 . Ballistic Cannon 3 | . . . . . 1 2 . Launcher 1 | . . . . 1 . . . Special Weapon . | . . . . . . . . Impact Weapon . | . . . . . . . . Slashing Weapon 1 | . . . . . . . 1 Piercing Weapon . | . . . . . . . . Special Melee Weapon . | . . . . . . . . Unidentified Prototypes . | . . . . . . . . Parts Lost 26 | . . . 2 . 4 . 20 Power 6 | . . . 1 . 1 . 4 Propulsion 8 | . . . . . 1 . 7 Utility 5 | . . . . . . . 5 Weapon 7 | . . . 1 . 2 . 4 Highest Loss Streak 17 | . . . 1 . 3 . 17 To Critical Strikes 1 | . . . . . . . 1 Average Backups 8 | 3 7 8 7 7 9 13 10 Power . | . 1 1 . . . 1 . Propulsion 2 | 1 3 4 4 3 2 2 1 Utility 3 | . . . . 2 5 8 7 Weapon 2 | 1 2 3 2 2 1 1 1 Tool/Special . | . . . . . . . . Unused Backups 20 | 1 3 . 1 1 2 5 7 Power . | . . . . . . . . Propulsion 5 | 1 2 . . . 1 1 . Utility 11 | . . . . . 1 3 7 Weapon 4 | . 1 . 1 1 . 1 . Tool/Special . | . . . . . . . . Average Slot Usage (%) 81 | . 85 85 81 94 65 81 51 Engine 5 | . 14 14 10 4 2 5 3 Core 5 | . . . . 9 4 5 3 Treads 7 | . 21 28 28 3 . . . Leg 17 | . 7 . . 24 22 23 12 Device 4 | . . . . . 9 20 14 Storage 10 | . 14 14 14 14 6 5 3 Processor 5 | . . . . 9 6 2 . Energy Cannon 4 | . . . . 9 4 4 . Ballistic Gun 14 | . 21 28 28 18 1 1 2 Ballistic Cannon 2 | . . . . . 3 9 5 Peak Build Rating 103 | 6 11 11 12 32 84 103 102 Average Rating 39 | 3 9 11 10 24 68 99 65 On Entrance 32 | . 6 11 11 11 32 84 102 Naked Turns 123 | . . . . . . . 123 Heaviest Build 82 | 11 14 14 17 41 67 82 78 Greatest Support 76 | 20 46 46 46 46 76 66 66 Greatest Overweight (x) 17 | . . . . 1 2 1 17 Average Overweight (x) . | . . . . . . . . Largest Inventory Capacity 15 | 8 8 8 8 15 15 15 15 Average Capacity 11 | 7 8 8 8 10 15 15 11 Most Carried 15 | 6 8 8 8 13 15 15 14 Average Carried 9 | 3 7 8 7 8 11 14 10 Final Capacity 15 | 8 8 8 8 15 15 15 5 Final Carried 15 | 4 8 8 7 13 15 14 5 Class Distribution -------------------- 74% | Mutant 25% | Skirmisher Dominant Class ---------------- Mutant | -10/Materials Mutant | -10/Mines Mutant | -10/Subcaves Mutant | -9/Scraptown Skirmisher | -6/Factory Skirmisher | -5/Factory Skirmisher | -5/Extension Resources | -11 -10 -10 -10 -9 -6 -5 -5 ----------- Run | Yrd Mat Min Sub Scr Fac Fac Ext Matter Collected 1144 | 196 116 . 147 76 232 158 219 Remotely . | . . . . . . . . Salvage Created 1147 | . 163 . 127 . 220 147 490 Parts 74 | . 6 . 12 . 12 8 36 Haulers Intercepted . | . . . . . . . . Recyclers Shooed 2 | . . . . . . . 2 Parts Field Recycled . | . . . . . . . . Retrieved Matter . | . . . . . . . . Parts Self-Destructed 4 | . . . 4 . . . . Prevented . | . . . . . . . . Kills | -11 -10 -10 -10 -9 -6 -5 -5 ------- Run | Yrd Mat Min Sub Scr Fac Fac Ext Combat Hostiles Destroyed 14 | . . . 5 . 5 1 3 Guns 5 | . . . 5 . . . . Cannons 7 | . . . . . 3 1 3 AOE 2 | . . . . . 2 . . Classes Destroyed 12 | . 2 . 2 . 3 1 4 Worker 3 | . 1 . . . . . 2 Builder 3 | . . . . . . . 3 Tunneler 1 | . . . . . . . 1 Recycler 5 | . 2 . . . . 1 2 Operator 1 | . . . . . . 1 . Watcher 1 | . . . . . . . 1 Swarmer 3 | . . . 3 . . . . Sentry 4 | . . . . . 2 . 2 Specialist 2 | . . . . . 2 . . Programmer 2 | . . . . . 1 1 . Behemoth 1 | . . . . . . . 1 Subdweller 2 | . . . 2 . . . . Best Kill Streak 7 | . 2 . 3 . 3 1 7 Combat Bots Only 3 | . . . 3 . 3 1 2 Max Kills in Single Turn 2 | . 1 . 1 . 1 1 2 Gunslinging . | . . . . . . . . Exploded 1 | . . . . . 1 . . Melee . | . . . . . . . . Uniques/NPCs Destroyed . | . . . . . . . . Combat | -11 -10 -10 -10 -9 -6 -5 -5 -------- Run | Yrd Mat Min Sub Scr Fac Fac Ext Hostile Shots Fired 336 | . 3 . 33 . 144 8 148 Missed 117 | . 1 . 11 . 52 5 48 Hits 219 | . 2 . 22 . 92 3 100 Projectile 219 | . 2 . 22 . 92 3 100 AOE 1 | . . . 1 . . . . Critical Strikes 7 | . . . . . . . 7 Part Disruptions 1 | . . . . . 1 . . Damage Taken 4402 | . 24 . 405 . 976 59 2938 Core 1216 | . . . 19 . 185 . 1012 Absorbed by Shields 6 | . . . . . 6 . . Core Remaining (%) 90 | 100 . . . 92 78 . . Volleys Fired 71 | . 6 . 18 . 20 5 22 Largest 3 | . 2 . 2 . 2 3 3 Hottest 172 | . 46 . 53 . 134 172 161 Shots Fired 146 | . 12 . 36 . 28 14 56 Gun 73 | . 12 . 36 . 3 1 21 Cannon 67 | . . . . . 19 13 35 Launcher 6 | . . . . . 6 . . Special . | . . . . . . . . Kinetic 124 | . 12 . 36 . 16 10 50 Thermal 13 | . . . . . 12 1 . Explosive . | . . . . . . . . Electromagnetic 9 | . . . . . . 3 6 Robot Hit Streak 8 | . 2 . 8 . 5 5 4 Robot Miss Streak 6 | . 4 . 5 . 2 6 5 Penetration Max 1 | . . . . . . . 1 Secondary Targets . | . . . . . . . . Shots Hit Robots 90 | . 6 . 21 . 19 7 37 Core Hits 54 | . 3 . 7 . 9 5 30 Critical Kills . | . . . . . . . . Critical Parts Destroyed . | . . . . . . . . Critical Strikes 2 | . . . . . . 1 1 Blast 2 | . . . . . . 1 1 Melee Attacks . | . . . . . . . . Impact . | . . . . . . . . Slashing . | . . . . . . . . Piercing . | . . . . . . . . Sneak Attacks . | . . . . . . . . Combat Hostiles . | . . . . . . . . Follow-up Attacks . | . . . . . . . . Damage Inflicted 3262 | . 87 . 342 . 934 285 1614 Guns 968 | . 87 . 342 . 40 . 499 Cannons 1765 | . . . . . 379 285 1101 Explosions 515 | . . . . . 515 . . Melee . | . . . . . . . . Ramming 14 | . . . . . . . 14 Kinetic 2681 | . 87 . 342 . 495 253 1504 Thermal 471 | . . . . . 439 32 . Explosive . | . . . . . . . . Electromagnetic 96 | . . . . . . . 96 Impact . | . . . . . . . . Slashing . | . . . . . . . . Piercing . | . . . . . . . . Highest Corruption 5 | . . . . . 5 1 1 Average Corruption 3 | . . . . . 3 1 1 Corruption Purged 6 | . . . . . 5 1 . Corruption Blocked . | . . . . . . . . Effects 11 | . . . . . 10 . 1 Message Errors 2 | . . . . . 2 . . Matter Fused 1 | . . . . . 1 . . Heat Flow Errors 3 | . . . . . 2 . 1 Energy Discharges 1 | . . . . . 1 . . Data Loss (minor) 2 | . . . . . 2 . . Alerts 2 | . . . . . 2 . . Overload Shots . | . . . . . . . . Overflow Damage 32 | . . . . . . 5 27 Projectiles 32 | . . . . . . 5 27 Explosions . | . . . . . . . . Melee . | . . . . . . . . Knockbacks 4 | . . . . . 1 2 1 Impact . | . . . . . . . . Kinetic 4 | . . . . . 1 2 1 Secondary . | . . . . . . . . Self-Inflicted Damage 129 | . . . . . 129 . . Shots 2 | . . . . . 2 . . Rammed . | . . . . . . . . Targets Rammed 1 | . . . . . . . 1 Kicked 1 | . . . . . . . 1 Crushed . | . . . . . . . . Highest Temperature 553 | . . . . . 254 315 553 Average Temperature 176 | . . . . . 90 121 243 Received Heat Transfer 988 | . 12 . 36 . 174 . 766 Effects 19 | . . . . . . . 19 Shutdowns 5 | . . . . . . . 5 Energy Bleed 2 | . . . . . . . 2 Interference 4 | . . . . . . . 4 Short Circuit 1 | . . . . . . . 1 Damage (minor) 1 | . . . . . . . 1 Damage (major) 4 | . . . . . . . 4 Damage (core) 2 | . . . . . . . 2 Siege Activations . | . . . . . . . . Martial Activations . | . . . . . . . . Shielding Activations . | . . . . . . . . Robots Disrupted . | . . . . . . . . Combat Hostiles . | . . . . . . . . Robots Corrupted . | . . . . . . . . Combat Hostiles . | . . . . . . . . Parts Fried . | . . . . . . . . Impact Corruptions . | . . . . . . . . Robots Melted . | . . . . . . . . Combat Hostiles . | . . . . . . . . Parts Melted . | . . . . . . . . Heat Transferred 435 | . . . . . 385 50 . Parts Sabotaged . | . . . . . . . . Parts Stolen . | . . . . . . . . Parts Stripped . | . . . . . . . . Power Chain Reactions . | . . . . . . . . Alert | -11 -10 -10 -10 -9 -6 -5 -5 ------- Run | Yrd Mat Min Sub Scr Fac Fac Ext Maximum Alert Level . | . . . . . . . . Low Security (%) 100 | 100 100 100 . . 100 100 100 Level 1 . | . . . . . . . . Level 2 . | . . . . . . . . Level 3 . | . . . . . . . . Level 4 . | . . . . . . . . Level 5 . | . . . . . . . . High Security . | . . . . . . . . Max Security . | . . . . . . . . Peak Influence 153 | . 30 . . . 127 36 153 Initial 4 | . . . . . . 4 . Average 21 | . 3 . . . 38 3 30 Influence Increases 760 | . 45 . 70 . 254 52 339 Destroy 0b10 Robot/C 240 | . . . 60 . 100 20 60 Destroy 0b10 Robot/NC 70 | . 15 . . . . 10 45 Destroy Leader 62 | . . . 10 . 40 10 2 Successful Hack 5 | . . . . . . . 5 Disable Machine 105 | . 30 . . . 75 . . Destroy Structure 73 | . . . . . 39 12 22 Lose Combat Pursuer 105 | . . . . . . . 105 Active Sensor Use 100 | . . . . . . . 100 Influence Decreases 756 | . 45 . 70 . 243 63 335 Entered New Map 7 | . . . . . . 7 . Time Decay 526 | . 45 . 60 . 228 56 137 Lost Part 203 | . . . 10 . 15 . 178 Lost Ally 20 | . . . . . . . 20 Squads Dispatched 4 | . . . . . 2 . 2 Investigation 1 | . . . . . . . 1 Extermination 1 | . . . . . 1 . . Reinforcement 2 | . . . . . 1 . 1 Assault . | . . . . . . . . Garrison . | . . . . . . . . Intercept . | . . . . . . . . Searches Triggered . | . . . . . . . . Construction Impeded 1 | . . . . . . . 1 Haulers Reinforced . | . . . . . . . . Active Scanning Responses 1 | . . . . . . . 1 Cargo Convoy Interrupts . | . . . . . . . . Stealth | -11 -10 -10 -10 -9 -6 -5 -5 --------- Run | Yrd Mat Min Sub Scr Fac Fac Ext Distress Signals 1 | . 1 . . . . . . Communications Jammed . | . . . . . . . . Distress Signals . | . . . . . . . . Times Spotted 42 | . 5 . 6 . 9 4 18 Peak Tracking Total 7 | . 3 . 3 . 3 2 7 Tactical Retreats 3 | . . . . . . . 3 Traps | -11 -10 -10 -10 -9 -6 -5 -5 ------- Run | Yrd Mat Min Sub Scr Fac Fac Ext Traps Triggered 2 | . . . . . 1 . 1 Indirectly . | . . . . . . . . Trap Hack Attempts . | . . . . . . . . Triggered . | . . . . . . . . Disarmed . | . . . . . . . . Reprogrammed . | . . . . . . . . Reused . | . . . . . . . . Traps Extracted . | . . . . . . . . Installed . | . . . . . . . . Triggered . | . . . . . . . . Machines | -11 -10 -10 -10 -9 -6 -5 -5 ---------- Run | Yrd Mat Min Sub Scr Fac Fac Ext Machines Disabled 10 | . 2 . . . 5 . 3 Max in Single Turn 2 | . 2 . . . 2 . 1 Machines Repaired . | . . . . . . . . Machines Dismantled . | . . . . . . . . Machines Sabotaged . | . . . . . . . . Overloaded Fab Kills . | . . . . . . . . Hacking | -11 -10 -10 -10 -9 -6 -5 -5 --------- Run | Yrd Mat Min Sub Scr Fac Fac Ext Machines Accessed 13 | . 2 . . 5 2 1 3 Terminals 7 | . 2 . . . 1 1 3 Fabricators . | . . . . . . . . Repair Stations . | . . . . . . . . Recycling Units 1 | . . . . . 1 . . Scanalyzers . | . . . . . . . . Garrison Access . | . . . . . . . . Total Hacks 39 | . 4 . . 25 3 2 5 Successful 31 | . 2 . . 25 . 2 2 Failed 8 | . 2 . . . 3 . 3 Catastrophic 1 | . . . . . . . 1 Database Lockouts . | . . . . . . . . Manual . | . . . . . . . . Terminals 12 | . 4 . . . 1 2 5 Fabricators . | . . . . . . . . Repair Stations . | . . . . . . . . Recycling Units 2 | . . . . . 2 . . Scanalyzers . | . . . . . . . . Garrison Access . | . . . . . . . . Terminal Hacks 31 | . 2 . . 25 . 2 2 Record 24 | . . . . 24 . . . Prototype ID Bank 1 | . 1 . . . . . . Open Door 1 | . . . . . . . 1 Emergency Access Points 1 | . . . . . . 1 . Transport Status 1 | . 1 . . . . . . Zone Layout 2 | . . . . . . 1 1 Proto ID Catalog 1 | . . . . 1 . . . Fabricator Hacks . | . . . . . . . . Repair Station Hacks . | . . . . . . . . Recycling Unit Hacks . | . . . . . . . . Scanalyzer . | . . . . . . . . Garrison Access Hacks . | . . . . . . . . Unauthorized Hacks . | . . . . . . . . Terminals . | . . . . . . . . Fabricators . | . . . . . . . . Repair Stations . | . . . . . . . . Recycling Units . | . . . . . . . . Scanalyzers . | . . . . . . . . Garrison Access . | . . . . . . . . Data Cores Recovered 1 | . . . . . . 1 . Used . | . . . . . . . . Hacking Detections 6 | . 2 . . . 2 1 1 Full Trace Events . | . . . . . . . . Feedback Events . | . . . . . . . . Feedback Blocked . | . . . . . . . . Robot Schematics Acquired . | . . . . . . . . Robots Built . | . . . . . . . . Authchips . | . . . . . . . . Time . | . . . . . . . . Total Robot Build Rating . | . . . . . . . . Part Schematics Acquired . | . . . . . . . . Parts Built . | . . . . . . . . Authchips . | . . . . . . . . Time . | . . . . . . . . Total Part Build Rating . | . . . . . . . . Parts Repaired . | . . . . . . . . Time . | . . . . . . . . Parts Recycled . | . . . . . . . . Recycled Matter . | . . . . . . . . Retrieved Matter . | . . . . . . . . Retrieved Components . | . . . . . . . . Parts Scanalyzed . | . . . . . . . . Part Schematics Acquired . | . . . . . . . . Parts Damaged . | . . . . . . . . Bothacking | -11 -10 -10 -10 -9 -6 -5 -5 ------------ Run | Yrd Mat Min Sub Scr Fac Fac Ext Used RIF Installer . | . . . . . . . . Robots Hacked . | . . . . . . . . Non-combat . | . . . . . . . . Combat . | . . . . . . . . Robot Hacks Applied . | . . . . . . . . Relay Couplers Released . | . . . . . . . . Fabnet Peak Effective % . | . . . . . . . . Robots Rewired . | . . . . . . . . Allies Hacked . | . . . . . . . . Hacks Repelled . | . . . . . . . . Allies | -11 -10 -10 -10 -9 -6 -5 -5 -------- Run | Yrd Mat Min Sub Scr Fac Fac Ext Total Allies 1 | . . . . . . . 1 Largest Group 1 | . . . . . . . 1 Highest-Rated Group 31 | . . . . . . . 31 Highest-Rated Ally 31 | . . . . . . . 31 Total Orders . | . . . . . . . . Ally Attacks 12 | . . . . . . . 12 Total Damage 172 | . . . . . . . 172 Kills . | . . . . . . . . Allies Corrupted . | . . . . . . . . Allies Melted . | . . . . . . . . Intel | -11 -10 -10 -10 -9 -6 -5 -5 ------- Run | Yrd Mat Min Sub Scr Fac Fac Ext Active Infowar (turns) 1310 | . . . . . 494 414 402 A.S.S. 1272 | . . . . . 494 414 364 Terrain 38 | . . . . . . . 38 Robot Analysis Total . | . . . . . . . . Derelict Logs Recovered 2 | . . . . 2 . . . Drone Launches . | . . . . . . . . Drone Recoveries . | . . . . . . . . Exploration | -11 -10 -10 -10 -9 -6 -5 -5 ------------- Run | Yrd Mat Min Sub Scr Fac Fac Ext Turns Passed 4750 | 65 392 42 595 1980 728 414 534 Spaces Moved 3122 | 44 239 14 332 1346 462 210 475 Core 259 | 6 . . . . . . 253 Treads 671 | . 176 14 332 149 . . . Legs 2099 | 38 63 . . 1197 462 210 129 Wheels . | . . . . . . . . Hover 93 | . . . . . . . 93 Flight . | . . . . . . . . Fastest Speed 40 | 50 120 160 160 120 105 105 40 Average Speed 138 | 110 149 160 160 144 126 180 93 Slowest Speed 900 | 120 160 160 160 190 260 185 900 Overloaded Moves . | . . . . . . . . Propulsion Burnouts . | . . . . . . . . Robots Hopped . | . . . . . . . . Potential Cave-ins . | . . . . . . . . Cave-ins Triggered . | . . . . . . . . Exploration Rate (%) 28 | 3 35 5 20 91 12 8 57 Regions Visited 7 Branch Regions 4 Pre-discovered Areas 1 | . . . . 1 . . . Known Exits Taken 2 | . . . . . 1 1 . Unknown Exits Taken 5 | 1 1 1 1 1 . . . Scrap Searched 4 | . . . . 4 . . . Spaces Dug . | . . . . . . . . Terrain Destroyed 70 | . . . . . 53 5 12 Melee . | . . . . . . . . Projectile 21 | . . . . . 4 5 12 AOE 49 | . . . . . 49 . . Terrain Rammed . | . . . . . . . . Walls Destroyed . | . . . . . . . . Machines Disabled . | . . . . . . . . Actions | -11 -10 -10 -10 -9 -6 -5 -5 --------- Run | Yrd Mat Min Sub Scr Fac Fac Ext Total 3428 | 61 265 34 360 1376 577 236 519 Wait 94 | . 1 21 2 3 55 . 12 Move 3115 | 43 238 13 331 1345 461 209 475 Hop . | . . . . . . . . Pick Up 57 | 11 10 . 3 6 18 9 . Fast Attach 5 | . . . . 1 1 . 3 Attach 25 | 6 . . 2 1 9 1 6 Detach 1 | . . . . 1 . . . Swap 26 | . 4 . 2 9 6 5 . Drop 29 | 1 6 . 2 6 7 7 . Fire 71 | . 6 . 18 . 20 5 22 Melee . | . . . . . . . . Ram . | . . . . . . . . Kick 1 | . . . . . . . 1 Crush . | . . . . . . . . Escape Stasis . | . . . . . . . . Rewire 4 | . . . . 4 . . . Trap . | . . . . . . . . Miscellaneous . | . . . . . . . . Route ------- -11/Scrapyard -10/Materials -10/Mines -10/Subcaves -9/Scraptown (discovered 2 exits: *Fac x2) -6/Factory -5/Factory -5/Extension History --------- Turn | Location | Event 17 | -11/Scrapyard | Discovered new exit (range 16) 66 | -11/Scrapyard | Entered Materials 272 | -10/Materials | Discovered new exit (range 15) 301 | -10/Materials | Build established: Mutant 458 | -10/Materials | Entered Mines 495 | -10/Mines | Discovered new exit (range 3) 500 | -10/Mines | Entered Subcaves 501 | -10/Subcaves | Approached by a straggling Scientist 791 | -10/Subcaves | Scientist uncovered a shortcut to Scraptown 1095 | -10/Subcaves | Entered Scraptown 1465 | -9/Scraptown | Discovered new exit (range 5) 1538 | -9/Scraptown | Scanned Subdweller tech in exchange for log data 1541 | -9/Scraptown | Learned location of Quarantine (-2) 1543 | -9/Scraptown | Learned location of 2 exits from Upper Caves 1569 | -9/Scraptown | Visited Symbiants 1601 | -9/Scraptown | Heard Great Nut preacher, LISTEN AND RECITE! 1609 | -9/Scraptown | Visited TADAMA 1837 | -9/Scraptown | Visited Comm Corps 1885 | -9/Scraptown | Visited SPCMW 1972 | -9/Scraptown | Visited Cave Peace 2006 | -9/Scraptown | Visited Shadow of the Wyrm 2086 | -9/Scraptown | Visited UFD Registry 2104 | -9/Scraptown | Visited Assassins FH 2152 | -9/Scraptown | Registered with UFD as "Nanospawn" 2180 | -9/Scraptown | Visited DA-N13 Charitable Foundation 2209 | -9/Scraptown | Visited Derelict Rescue Squad 2230 | -9/Scraptown | Found DRS Beacon 2253 | -9/Scraptown | Visited Science Guys 2522 | -9/Scraptown | Visited Curators Association 2554 | -9/Scraptown | Visited Scrap Suit Storage 2569 | -9/Scraptown | Found Scrap Suit 2608 | -9/Scraptown | Visited Science Testing Area 2673 | -9/Scraptown | Visited Infowarlord's Domain 2690 | -9/Scraptown | Found Active Sensor Suite 2729 | -9/Scraptown | Visited Scrapoid Research Area 2959 | -9/Scraptown | Met Optimus 2959 | -9/Scraptown | Accepted into 0bPrime 3067 | -9/Scraptown | Discovered new exit (range 3) 3075 | -9/Scraptown | Entered Factory 3075 | -6/Factory | Evolved 8 slots: Power x1, Propulsion x2, Utility x4, Weapon x1 3247 | -6/Factory | Lost 3 parts (1p2w) 3697 | -6/Factory | Build established: Skirmisher 3762 | -6/Factory | Discovered new exit (range 3) 3764 | -6/Factory | Identified exit to Factory 3803 | -6/Factory | Entered another Factory area 3803 | -5/Factory | Evolved 2 slots: Utility x2 4189 | -5/Factory | Discovered new exit (range 16) 4215 | -5/Factory | Identified exit to Extension 4217 | -5/Factory | Entered Extension 4396 | -5/Extension | Spotted B-75 Beast 4423 | -5/Extension | Destroyed B-75 Beast 4461 | -5/Extension | Spotted B-75 Beast 4467 | -5/Extension | Disrupted transfer network 4510 | -5/Extension | Core integrity fell below 50% 4582 | -5/Extension | Released all parts (3) 4605 | -5/Extension | Core integrity fell below 20% 4612 | -5/Extension | Lost 17 parts (3p6n4u4w) 4642 | -5/Extension | Rescued a captive Derelict 4751 | -5/Extension | Destroyed by B-75 Beast with Heavy Machine Gun Last Messages --------------- 04642_ HZ-9BR(g): "Thanks for the rescue! Were you sent by Warlord?" 04659_ Connecting with Terminal... >>Layout(Zone) Retrieving Zone 9C layout... Downloaded map data. 04669_ Penetrated by Slug. 04699_ Acquired Linear Gravjet. 04701_ Acquired Mic. Fission Core. 04704_ Acquired Adv. Terrain Scanner. 04719_ Triggered Shock Trap. 04719_ The floor emits a surge of raw power. 04719_ System corrupted (+1). 04722_ System corrupted: Heat flow error (+223). 04728_ S-27 Virus destroyed. 04729_ U-05 Engineer destroyed. 04735_ Mic. Fission Core destroyed. 04741_ Acquired 59 matter. 04742_ Adv. Terrain Scanner destroyed. 04745_ Linear Gravjet destroyed. 04746_ Acquired 6 matter. Map ----- +----------------------------------------------------+ | #????????????????????????????????????????????????? | | #????????????????????????????????????????????????? | | #????????????????????????????????????????????????? | | #????????????????????????????????????????????????? | | #????#???????????????????????????????????????????? | | #????????????????????????????????????????????????? | | #????????????????????????????????????????????????? | | #????????????????????????????????????????????????? | | #????????????????????????????????????????????????? | | #???#????? #?????????????????????????????????????? | | #????????? ??????????????????????????????????????? | | #????????? ??????????????????????????????????????? | | #????????? #?????????????????????????????????????? | | #????????# #?????????????????????????????????????? | | #????????# #?????????????????????????????????????? | | #????????# ?????????????????????????????????????? | | #????????# ""????????????????????????????????????? | | #??###???# #?????????????????????????????????????? | | #?######?# #?????????????????????????????????????? | | ###!## ### ###???????????????????????????????????? | | !%= " ""#???????????????????????????????????? | | %= *| " " #???????????????????????????????????? | | !! #???????????????????????????????????? | | !* ##??????????????????????????????????? | | == #####################???????????????? | | =% sss @ ????????? | | = u ????????? | | ! R ????????? | | =%| ?????????? | | *= tttk R Rku ?????????? | | !%% ##########################??????????? | | #???????????????????????????????????? | | #???????????????????????????????????? | | #???????????????????????????????????? | | #???????????????????????????????????? | | ##T#"""#######???????????????????????????????????? | | ?###?????????????????????????????????????????????? | | ?????????????????????????????????????????????????? | | | | | | | | | | | | | | | | | | | | | | | | | +----------------------------------------------------+ Best States ------------- Heat Dissipation 40 Energy Generation 28 Energy Capacity 350 Matter Stores 300 Matter Capacity 300 Sight Range 16 Robot Scan Range 20 Terrain Scan Range 20 Terrain Scan Density 10 Evasion (%) 57 Armor Integrity Analysis 30 Recoil Reduction 2 Kinecelleration 40 Item Schematics ----------------- None Robot Schematics ------------------ None Fabricated ------------ Nothing Repaired ---------- Nothing Alien Tech Used ----------------- None Achievements -------------- None Challenges ------------ None Game ------ Seed UltimateShrapnelSteel Manual? 0 Play Time 00:51:23 Cumulative 19.2 hours Start 2025.05.27 @ 20:50:25 End 2025.05.27 @ 21:43:52 Sessions 1 Manual Loads 0 Difficulty Rogue Special Mode None Game No. 26 Rogue 26 Adventurer 0 Explorer 0 Win Type - Total 0 Types 0/0/0/0/0/0/0/0/0/0 Lore% 20 Gallery% 22 Achievement% 20 Wizard Run 0 Options --------- Layout 0 ASCII 0 Keyboard 0 Movement Mouse Keybinds 0 Fullscreen 1 Font 18/SmallcapsGlow Map View 76x50 Zoom Use 0% Tactical HUD 1 Map Filters NONE Filters NONE Steam 1 RUN: 11ee2d03-2791-44ae-861c-2048788c55e8